Workbook

Sheet Special Rates 2019-20
E4: 2019/20 Calculation of Special School Funding Rates
B8: DfE | E8: =IFERROR(VLOOKUP(DFENUM,newdatacalc!$A$33:$BJ$55,2,0),"") -> 
B11: Section 1 - Commissioned Place numbers
B13: Academic Year | C13: Pre-16 | D13: Post-16 | E13: Weekday Residential | F13: Weekend Residential | H13: High Needs Place numbers as agreed annually with the Local Authority's SEN team. Place numbers 2018-19 agreed November 2017 Place numbers 2019-20 agreed November 2018
B15: 2018/19 | C15: =IFERROR(VLOOKUP(DFENUM,newdatacalc!$A$33:$BO$55,66,0),0) -> 0 | D15: =IFERROR(VLOOKUP(DFENUM,newdatacalc!$A$33:$BO$55,67,0),0) -> 0 | E15: =IFERROR(VLOOKUP(DFENUM,newdatacalc!$A$33:$BO$55,64,0),0) -> 0 | F15: =IFERROR(VLOOKUP(DFENUM,newdatacalc!$A$33:$BO$55,65,0),0) -> 0
B17: 2019/20 | C17: =IFERROR(VLOOKUP(DFENUM,newdatacalc!$A$33:$BO$55,61,0),0) -> 0 | D17: =IFERROR(VLOOKUP(DFENUM,newdatacalc!$A$33:$BO$55,62,0),0) -> 0 | E17: =IFERROR(VLOOKUP(DFENUM,newdatacalc!$A$33:$BO$55,59,0),0) -> 0 | F17: =IFERROR(VLOOKUP(DFENUM,newdatacalc!$A$33:$BO$55,60,0),0) -> 0
B19: Movement | C19: =C17-C15 -> 0 | D19: =D17-D15 -> 0 | E19: =E17-E15 -> 0 | F19: =F17-F15 -> 0
J23: Day Pupil | Q23: Weekday | X23: Weekend
B24: Section 2 - Calculation of funding rate for April 2019 to March 2020
J25: MLD & SLCN | K25: BESD | L25: SLD | M25: PD & PMLD | N25: ASD | Q25: MLD & SLCN | R25: BESD | S25: SLD | T25: PD & PMLD | U25: ASD | X25: MLD & SLCN | Y25: BESD | Z25: SLD | AA25: PD & PMLD | AB25: ASD
A27: (A) | B27: April 2019 to August 2019 (Formula only excluding MFG)- based on Academic Year 2018 to 2019. Data taken from 2018-19 Funding Rates Calculation. | J27: =IFERROR(VLOOKUP('Special Rates 2019-20'!DFENUM,newdatacalc!$A$33:$BT$55,23,0),0) -> 0 | K27: =IFERROR(VLOOKUP('Special Rates 2019-20'!DFENUM,newdatacalc!$A$33:$BT$55,24,0),0) -> 0 | L27: =IFERROR(VLOOKUP('Special Rates 2019-20'!DFENUM,newdatacalc!$A$33:$BT$55,25,0),0) -> 0 | M27: =IFERROR(VLOOKUP('Special Rates 2019-20'!DFENUM,newdatacalc!$A$33:$BT$55,26,0),0) -> 0 | N27: =IFERROR(VLOOKUP('Special Rates 2019-20'!DFENUM,newdatacalc!$A$33:$BT$55,27,0),0) -> 0 | Q27: =VLOOKUP('Special Rates 2019-20'!DFENUM,newdatacalc!$A$33:$AK$55,28,0) ->  | R27: =VLOOKUP('Special Rates 2019-20'!DFENUM,newdatacalc!$A$33:$AK$55,29,0) ->  | S27: =VLOOKUP('Special Rates 2019-20'!DFENUM,newdatacalc!$A$33:$AK$55,30,0) ->  | T27: =VLOOKUP('Special Rates 2019-20'!DFENUM,newdatacalc!$A$33:$AK$55,31,0) ->  | U27: =VLOOKUP('Special Rates 2019-20'!DFENUM,newdatacalc!$A$33:$AK$55,32,0) ->  | X27: =VLOOKUP('Special Rates 2019-20'!DFENUM,newdatacalc!$A$33:$AK$55,33,0) ->  | Y27: =VLOOKUP('Special Rates 2019-20'!DFENUM,newdatacalc!$A$33:$AK$55,34,0) ->  | Z27: =VLOOKUP('Special Rates 2019-20'!DFENUM,newdatacalc!$A$33:$AK$55,35,0) ->  | AA27: =VLOOKUP('Special Rates 2019-20'!DFENUM,newdatacalc!$A$33:$AK$55,36,0) ->  | AB27: =VLOOKUP('Special Rates 2019-20'!DFENUM,newdatacalc!$A$33:$AK$55,37,0) -> 
A29: (B) | B29: September 2019 to March 2020 (Formula only excluding MFG)- based on Academic Year 2019 to 2020. See section 3 for calculation. | J29: =J91 -> 9128.007813 | K29: =K91 -> 11039.86039 | L29: =L91 -> 12995.84806 | M29: 19441.57977 | N29: 14949.8296 | Q29: =Q91 ->  | R29: =R91 ->  | X29: =X91 ->  | Y29: =Y91 -> 
A31: (C) | B31: April 2019 to March 2020 - based on Academic Year 2018 to 2019 (April 2019 to August 2019) 5/12's + Academic Year 2019 to 2020 (September 2019 to March 2020) 7/12's | I31: = (A) X 5/12 + (B) X 7/12 | J31: =(J27*5/12)+(J29*7/12) -> 5324.671224 | K31: =(K27*5/12)+(K29*7/12) -> 6439.91856 | L31: =(L27*5/12)+(L29*7/12) -> 7580.911371 | M31: =(M27*5/12)+(M29*7/12) -> 11340.92153 | N31: =(N27*5/12)+(N29*7/12) -> 8720.733933 | Q31: =(Q27*5/12)+(Q29*7/12) ->  | R31: =(R27*5/12)+(R29*7/12) ->  | S31: =(S27*5/12)+(S29*7/12) ->  | T31: =(T27*5/12)+(T29*7/12) ->  | U31: =(U27*5/12)+(U29*7/12) ->  | X31: =(X27*5/12)+(X29*7/12) ->  | Y31: =(Y27*5/12)+(Y29*7/12) ->  | Z31: =(Z27*5/12)+(Z29*7/12) ->  | AA31: =(AA27*5/12)+(AA29*7/12) ->  | AB31: =(AB27*5/12)+(AB29*7/12) -> 
A33: (D-input) | B33: Final funding rate for financial Year 2018 to 2019 | J33: =IFERROR(VLOOKUP('Special Rates 2019-20'!DFENUM,newdatacalc!$A$33:$BT$55,40,0),0) -> 0 | K33: =IFERROR(VLOOKUP('Special Rates 2019-20'!DFENUM,newdatacalc!$A$33:$BT$55,41,0),0) -> 0 | L33: =IFERROR(VLOOKUP('Special Rates 2019-20'!DFENUM,newdatacalc!$A$33:$BT$55,42,0),0) -> 0 | M33: =IFERROR(VLOOKUP('Special Rates 2019-20'!DFENUM,newdatacalc!$A$33:$BT$55,43,0),0) -> 0 | N33: =IFERROR(VLOOKUP('Special Rates 2019-20'!DFENUM,newdatacalc!$A$33:$BT$55,44,0),0) -> 0 | Q33: =VLOOKUP('Special Rates 2019-20'!DFENUM,newdatacalc!$A$33:$BT$55,45,0) ->  | R33: =VLOOKUP('Special Rates 2019-20'!DFENUM,newdatacalc!$A$33:$BT$55,46,0) ->  | S33: =VLOOKUP('Special Rates 2019-20'!DFENUM,newdatacalc!$A$33:$BT$55,47,0) ->  | T33: =VLOOKUP('Special Rates 2019-20'!DFENUM,newdatacalc!$A$33:$BT$55,48,0) ->  | U33: =VLOOKUP('Special Rates 2019-20'!DFENUM,newdatacalc!$A$33:$BT$55,49,0) ->  | X33: =VLOOKUP('Special Rates 2019-20'!DFENUM,newdatacalc!$A$33:$BD$55,50,0) ->  | Y33: =VLOOKUP('Special Rates 2019-20'!DFENUM,newdatacalc!$A$33:$BD$55,51,0) ->  | Z33: =VLOOKUP('Special Rates 2019-20'!DFENUM,newdatacalc!$A$33:$BD$55,52,0) ->  | AA33: =VLOOKUP('Special Rates 2019-20'!DFENUM,newdatacalc!$A$33:$BD$55,53,0) ->  | AB33: =VLOOKUP('Special Rates 2019-20'!DFENUM,newdatacalc!$A$33:$BD$55,54,0) -> 
A34: (D) | B34: MFG rate (D-input) X 98.5% | J34: =J33*0.985 -> 0 | K34: =K33*0.985 -> 0 | L34: 0 | M34: 0 | N34: =N33*0.985 -> 0 | Q34: =Q33*0.985 ->  | R34: =R33*0.985 ->  | U34: =U33*0.985 ->  | X34: =X33*0.985 ->  | Y34: =Y33*0.985 -> 
J37: MLD & SLCN | K37: BESD | L37: SLD | M37: PD & PMLD | N37: ASD | Q37: MLD & SLCN | R37: BESD | S37: SLD | T37: PD & PMLD | U37: ASD | X37: MLD & SLCN | Y37: BESD | Z37: SLD | AA37: PD & PMLD | AB37: ASD
A38: (E) | B38: Final Rate (Greater of Formula (C) or MFG (D)) | G38: Formula (C) | J38: =J31 -> 5324.671224 | K38: =K31 -> 6439.91856 | L38: =L31 -> 7580.911371 | M38: =M31 -> 11340.92153 | N38: =N31 -> 8720.733933 | P38: Formula | Q38: =Q31 ->  | R38: =R31 ->  | S38: =S31 ->  | T38: =T31 ->  | U38: =U31 ->  | W38: Formula | X38: =X31 ->  | Y38: =Y31 ->  | Z38: =Z31 ->  | AA38: =AA31 ->  | AB38: =AB31 -> 
G39: MFG funding rate (D) | J39: =J34 -> 0 | K39: =K34 -> 0 | L39: 0 | M39: 0 | N39: 0 | P39: MFG | Q39: =Q34 ->  | R39: =R34 ->  | W39: MFG | X39: =X34 ->  | Y39: =Y34 -> 
G40: Amount of MFG if (D) is greater than ( C) | J40: =IF(J38>J39,0,J39-J38) -> 0 | K40: =IF(K38>K39,0,K39-K38) -> 0 | L40: 0 | M40: 0 | N40: 0 | P40: Amount of MFG if (D) is greater than ( C) | Q40: =IF(Q38>Q39,0,Q39-Q38) ->  | W40: Amount of MFG if (D) is greater than ( C) | X40: =IF(X38>X39,0,X39-X38) ->  | Y40: =IF(Y38>Y39,0,Y39-Y38) -> 
G41: Final Rate formula plus MFG | J41: =SUM(J38,J40) -> 5324.671224 | K41: =SUM(K38,K40) -> 6439.91856 | L41: 7580.911371 | M41: 11340.92153 | N41: 8720.733933 | P41: Final Rate | Q41: =SUM(Q38,Q40) ->  | R41: =SUM(R38,R40) ->  | W41: Final Rate | X41: =SUM(X38,X40) ->  | Y41: =SUM(Y38,Y40) ->  | Z41: =SUM(Z38,Z40) ->  | AA41: =SUM(AA38,AA40) ->  | AB41: =SUM(AB38,AB40) -> 
A42: (F) | B42: Place Plus Breakdown
G43: Element 1 & 2 | J43: 10000 | K43: 10000 | L43: 10000 | M43: 10000 | N43: 10000 | P43: Element 1 & 2 | Q43: =IF($F$81=0,0,10000) ->  | R43: =IF($F$81=0,0,10000) ->  | S43: =IF($F$81=0,0,10000) ->  | T43: =IF($F$81=0,0,10000) ->  | U43: =IF($F$81=0,0,10000) ->  | W43: Element 1 & 2 | X43: =IF($F$17=0,0,10000) -> 0 | Y43: =IF($F$17=0,0,10000) -> 0 | Z43: 0 | AA43: 0 | AB43: 0
G44: Element 3 | J44: =J41-J43 -> -4675.328776 | K44: =K41-K43 -> -3560.08144 | L44: -2419.088629 | M44: 1340.921532 | N44: -1279.266067 | P44: Element 3 | Q44: =Q41-Q43 ->  | R44: =R41-R43 ->  | W44: Element 3 | X44: =X41-X43 -> 
G45: Total rate | J45: =SUM(J43:J44) -> 5324.671224 | K45: =SUM(K43:K44) -> 6439.91856 | L45: 7580.911371 | M45: 11340.92153 | N45: 8720.733933 | P45: Total rate | Q45: =SUM(Q43:Q44) ->  | R45: =SUM(R43:R44) ->  | W45: Total rate | X45: =SUM(X43:X44) -> 
B46: Section 3 - Pupil Led Elements
J47: Need Type | Q47: Need Type | X47: Need Type
J48: MLD & SLCN | K48: BESD | L48: SLD | M48: PD & PMLD | N48: ASD | Q48: MLD & SLCN | R48: BESD | S48: SLD | T48: PD & PMLD | U48: ASD | X48: MLD & SLCN | Y48: BESD | Z48: SLD | AA48: PD & PMLD | AB48: ASD
B49: Day Rate | J49: 8876.17179 | K49: 10788.02437 | L49: 12744.01204 | M49: 19189.74375 | N49: 14697.99358 | Q49: =IF($F$81=0,0,8876.17179021256) ->  | R49: =IF($F$81=0,0,10788.0243655825) ->  | S49: =IF($F$81=0,0,12744.0120409384) ->  | T49: =IF($F$81=0,0,19189.7437454553) ->  | U49: =IF($F$81=0,0,14697.9935770824) ->  | X49: =IF($F$17=0,0,8876.17179021256) -> 0 | Y49: =IF($F$17=0,0,10788.0243655825) -> 0 | Z49: =IF($F$17=0,0,12744.0120409384) -> 0 | AA49: =IF($F$17=0,0,19189.7437454553) -> 0 | AB49: =IF($F$17=0,0,14697.9935770824) -> 0
B50: Adjusted Rate due to School type (see note 1) | J50: 0 | K50: =IFERROR(((VLOOKUP(DFENUM,newdatacalc!A5:G27,7,0)*newdatacalc!G4)+(VLOOKUP(DFENUM,newdatacalc!A5:G27,6,0)*newdatacalc!F4))-K49,0) -> 0 | L50: 0 | M50: 0 | N50: =IFERROR(((VLOOKUP(DFENUM,newdatacalc!A5:E27,5,0)*newdatacalc!E4)+(VLOOKUP(DFENUM,newdatacalc!A5:E27,4,0)*newdatacalc!D4))-N49,0) -> 0 | Q50: 0 | R50: =IF($F$81=0,0,K50) ->  | S50: 0 | T50: 0 | U50: =IF($F$81=0,0,N50) ->  | X50: 0 | Y50: =IF($F$17=0,0,K50) -> 0 | Z50: 0 | AA50: 0 | AB50: =IF($F$17=0,0,N50) -> 0
B51: Residential Weekday rate | J51: 0 | K51: 0 | L51: 0 | M51: 0 | N51: 0 | Q51: =VLOOKUP(DFENUM,newdatacalc!$A$33:$BT$55,69,0) ->  | R51: =VLOOKUP(DFENUM,newdatacalc!$A$33:$BT$55,69,0) ->  | S51: =VLOOKUP(DFENUM,newdatacalc!$A$33:$BT$55,69,0) ->  | T51: =VLOOKUP(DFENUM,newdatacalc!$A$33:$BT$55,69,0) ->  | U51: =VLOOKUP(DFENUM,newdatacalc!$A$33:$BT$55,69,0) ->  | X51: =IF($F$17=0,0,VLOOKUP(DFENUM,newdatacalc!$A$33:$BT$55,69,0)) -> 0 | Y51: =IF($F$17=0,0,VLOOKUP(DFENUM,newdatacalc!$A$33:$BT$55,69,0)) -> 0 | Z51: =IF($F$17=0,0,VLOOKUP(DFENUM,newdatacalc!$A$33:$BT$55,69,0)) -> 0 | AA51: =IF($F$17=0,0,VLOOKUP(DFENUM,newdatacalc!$A$33:$BT$55,69,0)) -> 0 | AB51: =IF($F$17=0,0,VLOOKUP(DFENUM,newdatacalc!$A$33:$BT$55,69,0)) -> 0
B52: Residential Weekend rate | J52: 0 | K52: 0 | L52: 0 | M52: 0 | N52: 0 | Q52: 0 | R52: 0 | S52: 0 | T52: 0 | U52: 0 | X52: =VLOOKUP(DFENUM,newdatacalc!$A$33:$BT$55,70,0) ->  | Y52: =VLOOKUP(DFENUM,newdatacalc!$A$33:$BT$55,70,0) ->  | Z52: =VLOOKUP(DFENUM,newdatacalc!$A$33:$BT$55,70,0) ->  | AA52: =VLOOKUP(DFENUM,newdatacalc!$A$33:$BT$55,70,0) ->  | AB52: =VLOOKUP(DFENUM,newdatacalc!$A$33:$BT$55,70,0) -> 
B53: Subsidy on day places (catering) | J53: 106 | K53: 106 | L53: 106 | M53: 106 | N53: 106 | Q53: =IF($F$81=0,0,106) ->  | R53: =Q53 ->  | S53: =R53 ->  | X53: =IF(F$17=0,0,106) -> 0 | Y53: =X53 -> 0 | Z53: 0 | AA53: 0 | AB53: 0
B54: Lunch Grant | J54: 11 | K54: 11 | L54: 11 | M54: 11 | N54: 11 | Q54: =IF($F$81=0,0,11) ->  | R54: =Q54 ->  | X54: =IF(F$17=0,0,11) -> 0 | Y54: 0 | Z54: 0 | AA54: 0 | AB54: 0
B55: Specialist Schools Funding | J55: 91.28090972 | K55: 91.28090972 | L55: 91.28090972 | M55: 91.28090972 | N55: 91.28090972 | Q55: =IF($F$81=0,0,91.2809097248297) ->  | X55: =IF(F$17=0,0,91.2809097248297) -> 0 | Y55: 0 | Z55: 0 | AA55: 0 | AB55: 0
B56: Further Delegation | J56: 42.06251087 | K56: 42.06251087 | L56: 42.06251087 | M56: 42.06251087 | N56: 42.06251087 | Q56: =IF($F$81=0,0,42.0625108718685) ->  | X56: =IF(F$17=0,0,42.0625108718685) -> 0 | Y56: 0 | Z56: 0 | AA56: 0 | AB56: 0
B57: Induction for Newly Qualified Teachers | J57: 1.492602448 | K57: 1.492602448 | L57: 1.492602448 | M57: 1.492602448 | N57: 1.492602448 | Q57: =IF($F$81=0,0,1.4926024481107) ->  | X57: =IF(F$17=0,0,1.4926024481107) -> 0 | Y57: 0 | Z57: 0 | AA57: 0 | AB57: 0
B58: Residential Weekday Places Catering | J58: 0 | K58: 0 | L58: 0 | M58: 0 | N58: 0 | Q58: =VLOOKUP(DFENUM,newdatacalc!$A$33:$BT$55,71,0) ->  | R58: =VLOOKUP(DFENUM,newdatacalc!$A$33:$BT$55,71,0) ->  | S58: =VLOOKUP(DFENUM,newdatacalc!$A$33:$BT$55,71,0) ->  | T58: =VLOOKUP(DFENUM,newdatacalc!$A$33:$BT$55,71,0) ->  | U58: =VLOOKUP(DFENUM,newdatacalc!$A$33:$BT$55,71,0) ->  | X58: 0 | Y58: 0 | Z58: 0 | AA58: 0 | AB58: 0
B59: Residential Weekend Places Catering | J59: 0 | K59: 0 | L59: 0 | M59: 0 | N59: 0 | Q59: 0 | R59: 0 | S59: 0 | T59: 0 | U59: 0 | X59: =VLOOKUP(DFENUM,newdatacalc!$A$33:$BT$55,72,0) ->  | Y59: =VLOOKUP(DFENUM,newdatacalc!$A$33:$BT$55,72,0) ->  | Z59: =VLOOKUP(DFENUM,newdatacalc!$A$33:$BT$55,72,0) ->  | AA59: =VLOOKUP(DFENUM,newdatacalc!$A$33:$BT$55,72,0) ->  | AB59: =VLOOKUP(DFENUM,newdatacalc!$A$33:$BT$55,72,0) -> 
B60: London Fringe Day Pupil | J60: =IFERROR(IF(LONDAY>0,0.0174114727366503*J49,0)*(IF(DFENUM=7002,(50/164),1)),0) -> 0 | K60: =IFERROR(IF(LONDAY>0,0.0186025655345146*(K49+K50),0)*(IF(DFENUM=7002,(50/164),1)),0) -> 0 | L60: =IFERROR(IF(LONDAY>0,0.0180246285124395*L49,0)*(IF(DFENUM=7002,(50/164),1)),0) -> 0 | M60: =IFERROR(IF(LONDAY>0,0.0184931692203593*M49,0)*(IF(DFENUM=7002,(50/164),1)),0) -> 0 | N60: =IFERROR(IF(LONDAY>0,0.0186025655345146*(N49+N50),0)*(IF(DFENUM=7002,(50/164),1)),0) -> 0 | Q60: =IF(VLOOKUP('Special Rates 2019-20'!DFENUM,newdatacalc!$A$33:$AK$55,19,0)>0,0.0174114727366503*Q49*(IF(DFENUM=7002,(164/164),1)),0) ->  | R60: =IF(VLOOKUP('Special Rates 2019-20'!DFENUM,newdatacalc!$A$33:$AK$55,19,0)>0,0.0186025655345146*R49*(IF(DFENUM=7002,(164/164),1)),0) ->  | S60: =IF(VLOOKUP('Special Rates 2019-20'!DFENUM,newdatacalc!$A$33:$AK$55,19,0)>0,0.0180246285124395*S49*(IF(DFENUM=7002,(164/164),1)),0) ->  | T60: =IF(VLOOKUP('Special Rates 2019-20'!DFENUM,newdatacalc!$A$33:$AK$55,19,0)>0,0.0184931692203593*T49*(IF(DFENUM=7002,(164/164),1)),0) ->  | U60: =IF(VLOOKUP('Special Rates 2019-20'!DFENUM,newdatacalc!$A$33:$AK$55,19,0)>0,0.0186025655345146*(U49+U50)*(IF(DFENUM=7002,(164/164),1)),0) ->  | X60: =IF(LONRES>0,0.0174114727366503*X49,0) ->  | Y60: =IF(LONRES>0,0.0186025655345146*Y49,0) ->  | Z60: =IF(LONRES>0,0.0180246285124395*Z49,0) ->  | AA60: =IF(LONRES>0,0.0184931692203593*AA49,0) ->  | AB60: =IF(LONRES>0,0.0186025655345146*AB49,0) -> 
B61: London Fringe Weekday Residential Pupil | J61: =IFERROR(IF(LONRES>0,0.0198836550802172*J51,0),0) -> 0 | K61: =IFERROR(IF(LONRES>0,0.0198836550802172*K51,0),0) -> 0 | L61: =IFERROR(IF(LONRES>0,0.0198836550802172*L51,0),0) -> 0 | M61: =IFERROR(IF(LONRES>0,0.0198836550802172*M51,0),0) -> 0 | N61: =IFERROR(IF(LONRES>0,0.0198836550802172*N51,0),0) -> 0 | Q61: =IF(LONRES>0,0.0198836550802172*Q51*(IF(DFENUM=7002,(164/164),1)),0) ->  | R61: =IF(LONRES>0,0.0198836550802172*R51*(IF(DFENUM=7002,(164/164),1)),0) ->  | S61: =IF(LONRES>0,0.0198836550802172*S51*(IF(DFENUM=7002,(164/164),1)),0) ->  | T61: =IF(LONRES>0,0.0198836550802172*T51*(IF(DFENUM=7002,(164/164),1)),0) ->  | U61: =IF(LONRES>0,0.0198836550802172*U51*(IF(DFENUM=7002,(164/164),1)),0) ->  | X61: =IF(LONRES>0,0.0198836550802172*X51,0) ->  | Y61: =IF(LONRES>0,0.0198836550802172*Y51,0) ->  | Z61: =IF(LONRES>0,0.0198836550802172*Z51,0) ->  | AA61: =IF(LONRES>0,0.0198836550802172*AA51,0) ->  | AB61: =IF(LONRES>0,0.0198836550802172*AB51,0) -> 
B62: London Fringe Weekend Residential Pupil | J62: =IFERROR(IF(LONRES>0,0.0198224953157972*J52,0),0) -> 0 | K62: =IFERROR(IF(LONRES>0,0.0198224953157972*K52,0),0) -> 0 | L62: =IFERROR(IF(LONRES>0,0.0198224953157972*L52,0),0) -> 0 | M62: =IFERROR(IF(LONRES>0,0.0198224953157972*M52,0),0) -> 0 | N62: =IFERROR(IF(LONRES>0,0.0198224953157972*N52,0),0) -> 0 | Q62: 0 | R62: 0 | S62: 0 | T62: 0 | U62: 0 | X62: =IF(LONRES>0,0.0198224953157972*X52,0) ->  | Y62: =IF(LONRES>0,0.0198224953157972*Y52,0) ->  | Z62: =IF(LONRES>0,0.0198224953157972*Z52,0) ->  | AA62: =IF(LONRES>0,0.0198224953157972*AA52,0) ->  | AB62: =IF(LONRES>0,0.0198224953157972*AB52,0) -> 
B64: Rate for Pupil Led Elements | J64: =SUM(J49:J63) -> 9128.007813 | K64: =SUM(K49:K63) -> 11039.86039 | L64: =SUM(L49:L63) -> 12995.84806 | M64: 19441.57977 | N64: 14949.8296 | Q64: =SUM(Q49:Q63) ->  | X64: =SUM(X49:X63) ->  | Y64: =SUM(Y49:Y63) -> 
B66: Section 4 - School Led Elements
J67: Need Type | Q67: Need Type | X67: Need Type
F68: Units | G68: Rate | H68: Total | I68: Places | J68: MLD & SLCN | K68: BESD | L68: SLD | M68: PD & PMLD | N68: ASD | Q68: MLD & SLCN | R68: BESD | S68: SLD | T68: PD & PMLD | U68: ASD | X68: MLD & SLCN | Y68: BESD | Z68: SLD | AA68: PD & PMLD | AB68: ASD
B69: Lump Sum Day | F69: =VLOOKUP('Special Rates 2019-20'!DFENUM,newdatacalc!$A$6:$AM$27,16,0) ->  | G69: 346331 | H69: =F69*G69 ->  | I69: =$C$17+$D$17 -> 0 | J69: =IF(I69=0,0,H69/I69) -> 0 | K69: =$J69 -> 0 | L69: =$J69 -> 0 | M69: 0 | N69: 0 | Q69: =IF(SUM($E$17:$F$17)>0,$J69,0) -> 0 | R69: =IF(SUM($E$17:$F$17)>0,K$69,0) -> 0 | S69: =IF(SUM($E$17:$F$17)>0,L$69,0) -> 0 | T69: =IF(SUM($E$17:$F$17)>0,M$69,0) -> 0 | U69: =IF(SUM($E$17:$F$17)>0,N$69,0) -> 0 | X69: =IF(SUM($F$17)>0,$J69,0) -> 0 | Y69: =IF(SUM($F$17)>0,$K69,0) -> 0 | Z69: =IF(SUM($F$17)>0,$L69,0) -> 0 | AA69: =IF(SUM($F$17)>0,$M69,0) -> 0 | AB69: =IF(SUM($F$17)>0,$N69,0) -> 0
B70: Lump Sum Catering Day | F70: =VLOOKUP('Special Rates 2019-20'!DFENUM,newdatacalc!$A$6:$AM$27,17,0) ->  | G70: 2000 | H70: =F70*G70 ->  | I70: =$C$17+$D$17 -> 0 | J70: =IF(I70=0,0,H70/I70) -> 0 | K70: =$J70 -> 0 | L70: 0 | M70: 0 | N70: 0 | Q70: =IF(SUM($E$17:$F$17)>0,$J70,0) -> 0 | R70: =IF(SUM($E$17:$F$17)>0,K$70,0) -> 0 | S70: =IF(SUM($E$17:$F$17)>0,L$70,0) -> 0 | T70: =IF(SUM($E$17:$F$17)>0,M$70,0) -> 0 | U70: =IF(SUM($E$17:$F$17)>0,N$70,0) -> 0 | X70: =IF(SUM($F$17)>0,$J70,0) -> 0 | Y70: =IF(SUM($F$17)>0,$J70,0) -> 0 | Z70: 0 | AA70: 0 | AB70: 0
B71: Specialist Schools Funding- Lump Sum | F71: =VLOOKUP('Special Rates 2019-20'!DFENUM,newdatacalc!$A$6:$AM$27,15,0) ->  | G71: 11817.70833 | I71: 0 | J71: =IF(I71=0,0,H71/I71) -> 0 | K71: 0 | L71: 0 | M71: 0 | N71: 0 | Q71: 0 | R71: =IF(SUM($E$17:$F$17)>0,K$71,0) -> 0 | S71: =IF(SUM($E$17:$F$17)>0,L$71,0) -> 0 | T71: =IF(SUM($E$17:$F$17)>0,M$71,0) -> 0 | U71: =IF(SUM($E$17:$F$17)>0,N$71,0) -> 0 | X71: 0 | Y71: 0 | Z71: 0 | AA71: 0 | AB71: 0
B72: Free Mid-day Meals | F72: =VLOOKUP('Special Rates 2019-20'!DFENUM,newdatacalc!A$33:V$55,18,0)*SUM(C17:D17) ->  | G72: 415 | H72: =F72*G72 ->  | I72: 0 | J72: =IF(I72=0,0,H72/I72) -> 0 | K72: 0 | L72: 0 | M72: 0 | N72: 0 | Q72: 0 | R72: =IF(SUM($E$17:$F$17)>0,K$72,0) -> 0 | S72: =IF(SUM($E$17:$F$17)>0,L$72,0) -> 0 | T72: =IF(SUM($E$17:$F$17)>0,M$72,0) -> 0 | U72: =IF(SUM($E$17:$F$17)>0,N$72,0) -> 0 | X72: 0 | Y72: 0 | Z72: 0 | AA72: 0 | AB72: 0
B73: Gross Day Floor Area (m2) | F73: =VLOOKUP('Special Rates 2019-20'!DFENUM,newdatacalc!A$33:V$55,7,0) ->  | G73: 29.99999778 | I73: 0 | J73: 0 | K73: 0 | L73: 0 | M73: 0 | N73: 0 | Q73: 0 | R73: =IF(SUM($E$17:$F$17)>0,K$73,0) -> 0 | S73: =IF(SUM($E$17:$F$17)>0,L$73,0) -> 0 | T73: =IF(SUM($E$17:$F$17)>0,M$73,0) -> 0 | U73: =IF(SUM($E$17:$F$17)>0,N$73,0) -> 0 | X73: 0 | Y73: 0 | Z73: 0 | AA73: 0 | AB73: 0
B74: Grounds Site Area (hectares) | F74: =VLOOKUP('Special Rates 2019-20'!DFENUM,newdatacalc!A$33:V$55,10,0) ->  | G74: 1052 | I74: 0 | J74: 0 | K74: 0 | L74: 0 | M74: 0 | N74: 0 | Q74: 0 | R74: =IF(SUM($E$17:$F$17)>0,K$74,0) -> 0 | S74: =IF(SUM($E$17:$F$17)>0,L$74,0) -> 0 | T74: =IF(SUM($E$17:$F$17)>0,M$74,0) -> 0 | U74: =IF(SUM($E$17:$F$17)>0,N$74,0) -> 0 | X74: 0 | Y74: 0 | Z74: 0 | AA74: 0 | AB74: 0
B75: Rentals | F75: =VLOOKUP('Special Rates 2019-20'!DFENUM,newdatacalc!A$33:V$55,12,0) ->  | G75: =VLOOKUP('Special Rates 2019-20'!DFENUM,newdatacalc!$A$33:$V$55,11,0) ->  | H75: =F75*G75 ->  | I75: 0 | J75: =IF(I75=0,0,H75/I75) -> 0 | K75: 0 | L75: 0 | M75: 0 | N75: 0 | Q75: 0 | R75: =IF(SUM($E$17:$F$17)>0,K$75,0) -> 0 | S75: =IF(SUM($E$17:$F$17)>0,L$75,0) -> 0 | T75: =IF(SUM($E$17:$F$17)>0,M$75,0) -> 0 | U75: =IF(SUM($E$17:$F$17)>0,N$75,0) -> 0 | X75: 0 | Y75: 0 | Z75: 0 | AA75: 0 | AB75: 0
B76: Hydrotherapy Pool | F76: =VLOOKUP('Special Rates 2019-20'!DFENUM,newdatacalc!A$33:V$55,17,0) ->  | G76: 5000 | I76: 0 | J76: 0 | K76: 0 | L76: 0 | M76: 0 | N76: 0 | Q76: 0 | R76: =IF(SUM($E$17:$F$17)>0,K$76,0) -> 0 | S76: =IF(SUM($E$17:$F$17)>0,L$76,0) -> 0 | T76: =IF(SUM($E$17:$F$17)>0,M$76,0) -> 0 | U76: =IF(SUM($E$17:$F$17)>0,N$76,0) -> 0 | X76: 0 | Y76: 0 | Z76: 0 | AA76: 0 | AB76: 0
B77: Split site- Band 1 | F77: =VLOOKUP('Special Rates 2019-20'!DFENUM,newdatacalc!A$33:V$55,20,0) ->  | G77: 4378 | I77: 0 | J77: 0 | K77: 0 | L77: 0 | M77: 0 | N77: 0 | Q77: 0 | R77: =IF(SUM($E$17:$F$17)>0,K$77,0) -> 0 | S77: =IF(SUM($E$17:$F$17)>0,L$77,0) -> 0 | T77: 0 | U77: 0 | X77: 0 | Y77: 0 | Z77: 0 | AA77: 0 | AB77: 0
B78: Split site - Band 2 | F78: =VLOOKUP('Special Rates 2019-20'!DFENUM,newdatacalc!A$33:V$55,21,0) ->  | G78: =VLOOKUP('Special Rates 2019-20'!DFENUM,newdatacalc!A$33:V$55,22,0) ->  | I78: 0 | J78: =IF(I78=0,0,H78/I78) -> 0 | K78: 0 | L78: 0 | M78: 0 | N78: 0 | Q78: 0 | R78: =IF(SUM($E$17:$F$17)>0,K$78,0) -> 0 | S78: =IF(SUM($E$17:$F$17)>0,L$78,0) -> 0 | T78: 0 | U78: 0 | X78: 0 | Y78: 0 | Z78: 0 | AA78: 0 | AB78: 0
B79: Residential Floor Area Weekday (m2) | F79: =VLOOKUP('Special Rates 2019-20'!DFENUM,newdatacalc!A$33:V$55,8,0) ->  | G79: 49.99954249 | H79: =F79*G79 ->  | I79: =E17 -> 0 | J79: 0 | K79: 0 | L79: 0 | M79: 0 | N79: 0 | Q79: =IF(SUM($E$17:$F$17)>0,H79/I79,0) -> 0 | R79: =Q79 -> 0 | S79: =R79 -> 0 | T79: 0 | U79: 0 | X79: 0 | Y79: 0 | Z79: 0 | AA79: 0 | AB79: 0
B80: Residential Floor Area Weekend (m2) | F80: =VLOOKUP('Special Rates 2019-20'!DFENUM,newdatacalc!A$33:V$55,9,0) ->  | G80: 64.99990816 | I80: =E17 -> 0 | J80: 0 | K80: 0 | L80: 0 | M80: 0 | N80: 0 | Q80: =IF(SUM($E$17:$F$17)>0,H80/I80,0) -> 0 | R80: =Q80 -> 0 | S80: 0 | T80: 0 | U80: 0 | X80: =IF(SUM($F$17)>0,$Q80,0) -> 0 | Y80: 0 | Z80: 0 | AA80: 0 | AB80: 0
B81: Lump Sum Residential | F81: =VLOOKUP('Special Rates 2019-20'!DFENUM,newdatacalc!A$33:V$55,15,0) ->  | G81: =VLOOKUP('Special Rates 2019-20'!DFENUM,newdatacalc!$A$33:$V$55,16,0) ->  | I81: =E17 -> 0 | J81: 0 | K81: 0 | L81: 0 | M81: 0 | N81: 0 | Q81: =IF(SUM($E$17:$F$17)>0,H81/I81,0) -> 0 | R81: 0 | S81: 0 | T81: 0 | U81: 0 | X81: =IF(SUM($F$17)>0,$Q81,0) -> 0 | Y81: 0 | Z81: 0 | AA81: 0 | AB81: 0
B82: London Fringe Day Pupils | F82: =VLOOKUP('Special Rates 2019-20'!DFENUM,newdatacalc!A$33:V$55,19,0) ->  | G82: =VLOOKUP('Special Rates 2019-20'!DFENUM,newdatacalc!A$5:AM$55,18,0) ->  | H82: =F82*G82 ->  | I82: =$C$17+$D$17 -> 0 | J82: =IF(I82=0,0,$H$82/$I$82)*(IF(DFENUM=7002,(50/164),1)) -> 0 | K82: =J82 -> 0 | L82: 0 | M82: 0 | N82: =M82 -> 0 | Q82: =IF(SUM($E$17:$F$17)>0,(H82/I82)*(IF(DFENUM=7002,(164/164),1)),0) -> 0 | R82: 0 | S82: 0 | T82: 0 | U82: 0 | X82: 0 | Y82: 0 | Z82: 0 | AA82: 0 | AB82: 0
B83: London Fringe Residential Pupils | F83: =VLOOKUP('Special Rates 2019-20'!DFENUM,newdatacalc!A$33:V$55,19,0) ->  | G83: =IF(DFENUM=7002,2414.25,2414.25) -> 2414.25 | H83: =F83*G83 ->  | I83: =E17 -> 0 | J83: 0 | K83: 0 | L83: 0 | M83: 0 | N83: 0 | Q83: =IF(SUM($E$17:$F$17)>0,(H83/I83)*(IF(DFENUM=7002,(164/164),1)),0) -> 0 | R83: 0 | S83: 0 | T83: 0 | U83: 0 | X83: 0 | Y83: 0 | Z83: 0 | AA83: 0 | AB83: 0
B85: Rate for School Led Elements | J85: =SUM(J69:J84) -> 0 | K85: 0 | L85: 0 | M85: 0 | N85: 0 | Q85: =SUM(Q69:Q84) -> 0 | R85: =SUM(R69:R84) -> 0 | S85: 0 | T85: 0 | U85: 0 | X85: =SUM(X69:X84) -> 0 | Y85: =SUM(Y69:Y84) -> 0 | Z85: =SUM(Z69:Z84) -> 0 | AA85: =SUM(AA69:AA84) -> 0 | AB85: =SUM(AB69:AB84) -> 0
B88: Total Formula Rate
J89: Need Type | Q89: Need Type | X89: Need Type
J90: MLD & SLCN | K90: BESD | L90: SLD | M90: PD & PMLD | N90: ASD | Q90: MLD & SLCN | R90: BESD | S90: SLD | T90: PD & PMLD | U90: ASD | X90: MLD & SLCN | Y90: BESD | Z90: SLD | AA90: PD & PMLD | AB90: ASD
J91: =J64+J85 -> 9128.007813 | K91: =K64+K85 -> 11039.86039 | L91: =L64+L85 -> 12995.84806 | M91: =M64+M85 -> 19441.57977 | N91: =N64+N85 -> 14949.8296 | Q91: =Q64+Q85 ->  | R91: =R64+R85 ->  | S91: =S64+S85 ->  | T91: =T64+T85 ->  | U91: =U64+U85 ->  | X91: =X64+X85 ->  | Y91: =Y64+Y85 ->  | Z91: =Z64+Z85 ->  | AA91: =AA64+AA85 ->  | AB91: =AB64+AB85 -> 
B93: Note 1
B94: ASD | G94: BESD
B95: - All ASD pupils in Stone Bay are funded at ASD2 (£21,797) | G95: - 75% of Pupils at BESD Schools funded at BESD2 (£13,721)
B96: - 10% of all ASD places in C & I and PSCN Special Schools are funded at ASD2 (£15,408) | G96: - 25% of all Primary aged Pupils at B&L Schools funded at at BESD2 (BESD1 - £10,078 + percentage profile of individual School)

Sheet Nursery Lump Sums
B2: 2019/20 Nursery Provision Lump Sum Calculation
C5: Rates
C7: Leadership Lump Sum per provision | D7: 50000 | I7: Day Rate Breakdown
C8: Day Rate per FTE (see breakdown) | D8: 8681.57
I9: Support Staff | J9: 7073.65
C10: Calculation | I10: Other Staffing | J10: 1003.07
I11: Resources | J11: 354.08
D12: Units | E12: Rate | F12: Total | I12: Training/Sundry | J12: 250.77
C13: Leadership Lump Sum | D13: =IFERROR(VLOOKUP(DFENUM,newdatacalc!$A$33:$BS$55,4,0),0) -> 0 | E13: 50000 | F13: =IFERROR(E13*D13,"TBC") -> 0 | I13: Total FTE Funding | J13: 8681.57
C14: Day Rate | D14: =IFERROR(VLOOKUP(DFENUM,newdatacalc!$A$33:$BS$55,5,0),0) -> 0 | E14: 8681.57 | F14: =IFERROR(E14*D14,"TBC") -> 0
E16: Total Funding at this provision: | F16: =IFERROR(F14+F13,"TBC") -> 0
C19: This funding will be provided in twelve equal instalments (except where a Nursery provision is commissioned to start in-year)
J97: =J56+J85 -> 0
J113: =J97+J105 -> 0

Sheet newdatacalc (hidden)
A1: 1 | B1: 2 | C1: 3 | D1: 4 | E1: 5 | F1: 6 | G1: 7 | H1: 8 | I1: 9 | J1: 10 | K1: 11 | L1: 12 | M1: 13 | N1: 14 | O1: 15 | P1: 16 | Q1: 17 | R1: 18 | S1: 19 | T1: 20 | U1: 21 | V1: 22 | W1: 23 | X1: 24 | Y1: 25 | Z1: 26 | AA1: 27 | AB1: 28 | AC1: 29 | AD1: 30 | AE1: 31 | AF1: 32 | AG1: 33 | AH1: 34 | AI1: 35 | AJ1: 36 | AK1: 40 | AL1: 37 | AM1: 38 | AN1: 39 | AO1: 41 | AP1: 42 | AQ1: 43 | AR1: 44 | AS1: 45 | AT1: 46 | AU1: 47 | AV1: 48 | AW1: 49 | AX1: 50 | AY1: 51 | AZ1: 52 | BA1: 53 | BB1: 54 | BC1: 55 | BD1: 56 | BE1: 57 | BF1: 58 | BG1: 59 | BH1: 60 | BI1: 61 | BJ1: 62 | BK1: 63 | BL1: 64 | BM1: 65 | BN1: 66 | BO1: 67 | BP1: 68 | BQ1: 69 | BR1: 70 | BS1: 71 | BT1: 72 | BU1: 73 | BV1: 74 | BW1: 89 | BX1: 90 | BY1: 91 | BZ1: 92 | CA1: 93 | CB1: 94 | CC1: 95 | CD1: 96 | CE1: 97 | CF1: 98 | CG1: 99 | CH1: 100 | CI1: 101 | CJ1: 102 | CK1: 103
A4: Calc | D4: 21796.72428 | E4: 14697.99358 | F4: 14697.99358 | G4: 10788.02437 | O4: Section 4 - Units
A5: Dfe | B5: School | C5: Type | D5: ASD High rate | E5: ASD Low Rate | F5: BESD High rate | G5: BESD Low Rate | I5: Dfe | J5: Primary Pupils | K5: Secondary Pupils | L5: Total Pupils | M5: % primary | N5: 25% BESD2 | O5: Specialist School | P5: Lump sum day | Q5: Lump sum day catering | R5: London Fridge Dat rate
A6: 7032 | B6: Bower Grove School | C6: B&L | D6: 0 | E6: 1 | F6: 0.1004464286 | G6: 0.8995535714 | I6: 7032 | J6: 45 | K6: 67 | L6: 112 | M6: 0.4017857143 | N6: 0.1004464286 | O6: 1 | P6: 1 | Q6: 1 | R6: 3854.25
A7: 7033 | B7: St Anthony's School | C7: B&L | D7: 0 | E7: 1 | F7: 0.09166666667 | G7: 0.9083333333 | I7: 7033 | J7: 22 | K7: 38 | L7: 60 | M7: 0.3666666667 | N7: 0.09166666667 | O7: 1 | P7: 1 | Q7: 1 | R7: 3854.25
A8: 7044 | B8: Rowhill School | C8: B&L | D8: 0 | E8: 1 | F8: 0.1140350877 | G8: 0.8859649123 | I8: 7044 | J8: 26 | K8: 31 | L8: 57 | M8: 0.4561403509 | N8: 0.1140350877 | O8: 1 | P8: 1 | Q8: 1 | R8: 3854.25
A9: 7045 | B9: Elms School | C9: B&L | D9: 0 | E9: 1 | F9: 0.1016483516 | G9: 0.8983516484 | I9: 7045 | J9: 37 | K9: 54 | L9: 91 | M9: 0.4065934066 | N9: 0.1016483516 | O9: 1 | P9: 1 | Q9: 1 | R9: 3854.25
A10: 7062 | B10: The Orchard School | C10: B&L | D10: 0 | E10: 1 | F10: 0.07661290323 | G10: 0.9233870968 | I10: 7062 | J10: 19 | K10: 43 | L10: 62 | M10: 0.3064516129 | N10: 0.07661290323 | O10: 1 | P10: 1 | Q10: 1 | R10: 3854.25
A11: 7041 | B11: Goldwyn Community Special School | C11: BESD | D11: 0 | E11: 1 | F11: 0.75 | G11: 0.25 | O11: 1 | P11: 1 | Q11: 1 | R11: 3854.25
A12: 7067 | B12: Portal House School | C12: BESD | D12: 0 | E12: 1 | F12: 0.75 | G12: 0.25 | O12: 1 | P12: 1 | Q12: 1 | R12: 3854.25
A13: 7002 | B13: Broomhill Bank School | C13: C&I | D13: 0.1 | E13: 0.9 | F13: 0 | G13: 1 | O13: 1 | P13: 1 | Q13: 1 | R13: 3854.25
A14: 7052 | B14: Grange Park School | C14: C&I | D14: 0.1 | E14: 0.9 | F14: 0 | G14: 1 | O14: 1 | P14: 1 | Q14: 1 | R14: 3854.25
A15: 7058 | B15: Stone Bay School | C15: C&I | D15: 1 | E15: 0 | F15: 0 | G15: 1 | O15: 1 | P15: 1 | Q15: 1 | R15: 3854.25
A16: 7073 | B16: Laleham Gap School | C16: C&I | D16: 0.1 | E16: 0.9 | F16: 0 | G16: 1 | O16: 1 | P16: 1 | Q16: 1 | R16: 3854.25
A17: 7021 | B17: Valence School | C17: PD | D17: 0 | E17: 1 | F17: 0 | G17: 1 | O17: 1 | P17: 1 | Q17: 1 | R17: 3854.25
A18: 7039 | B18: The Ifield School | C18: PSCN | D18: 0.1 | E18: 0.9 | F18: 0 | G18: 1 | O18: 1 | P18: 1 | Q18: 1 | R18: 3854.25
A19: 7040 | B19: Foreland Fields School | C19: PSCN | D19: 0.1 | E19: 0.9 | F19: 0 | G19: 1 | O19: 1 | P19: 1 | Q19: 1 | R19: 3854.25
A20: 7043 | B20: The Beacon Folkestone | C20: PSCN | D20: 0.1 | E20: 0.9 | F20: 0 | G20: 1 | O20: 1 | P20: 1 | Q20: 1 | R20: 3854.25
A21: 7051 | B21: Nexus School | C21: PSCN | D21: 0.1 | E21: 0.9 | F21: 0 | G21: 1 | O21: 1 | P21: 1 | Q21: 1 | R21: 3854.25
A22: 7056 | B22: Five Acre Wood School | C22: PSCN | D22: 0.1 | E22: 0.9 | F22: 0 | G22: 1 | O22: 1 | P22: 1 | Q22: 1 | R22: 3854.25
A23: 7063 | B23: St Nicholas' School | C23: PSCN | D23: 0.1 | E23: 0.9 | F23: 0 | G23: 1 | O23: 1 | P23: 1 | Q23: 1 | R23: 3854.25
A24: 7066 | B24: Milestone School | C24: PSCN | D24: 0.1 | E24: 0.9 | F24: 0 | G24: 1 | O24: 1 | P24: 1 | Q24: 1 | R24: 3854.25
A25: 7069 | B25: The Wyvern School | C25: PSCN | D25: 0.1 | E25: 0.9 | F25: 0 | G25: 1 | O25: 1 | P25: 1 | Q25: 1 | R25: 3854.25
A26: 7070 | B26: Oakley School | C26: PSCN | D26: 0.1 | E26: 0.9 | F26: 0 | G26: 1 | O26: 1 | P26: 1 | Q26: 1 | R26: 3854.25
A27: 7072 | B27: Meadowfield School | C27: PSCN | D27: 0.1 | E27: 0.9 | F27: 0 | G27: 1 | O27: 1 | P27: 1 | Q27: 1 | R27: 3854.25
A29: 1 | B29: 2 | C29: 3 | D29: 4 | E29: 5 | F29: 6 | G29: 7 | H29: 8 | I29: 9 | J29: 10 | K29: 11 | L29: 12 | M29: 13 | N29: 14 | O29: 15 | P29: 16 | Q29: 17 | R29: 18 | S29: 19 | T29: 20 | U29: 21 | V29: 22 | W29: 23 | X29: 24 | Y29: 25 | Z29: 26 | AA29: 27 | AB29: 28 | AC29: 29 | AD29: 30 | AE29: 31 | AF29: 32 | AG29: 33 | AH29: 34 | AI29: 35 | AJ29: 36 | AK29: 37 | AL29: 38 | AM29: 39 | AN29: 40 | AO29: 41 | AP29: 42 | AQ29: 43 | AR29: 44 | AS29: 45 | AT29: 46 | AU29: 47 | AV29: 48 | AW29: 49 | AX29: 50 | AY29: 51 | AZ29: 52 | BA29: 53 | BB29: 54 | BC29: 55 | BD29: 56 | BE29: 57 | BF29: 58 | BG29: 59 | BH29: 60 | BI29: 61 | BJ29: 62 | BK29: 63 | BL29: 64 | BM29: 65 | BN29: 66 | BO29: 67 | BP29: 68 | BQ29: 69 | BR29: 70 | BS29: 71 | BT29: 72 | BU29: 73 | BV29: 74 | BW29: 75 | BX29: 76 | BY29: 77 | BZ29: 78 | CA29: 79 | CB29: 80 | CC29: 81 | CD29: 82 | CE29: 83 | CF29: 84 | CG29: 85 | CH29: 86 | CI29: 87 | CJ29: 88 | CK29: 89
BF31: 4457 | BG31: 91 | BH31: 16 | BI31: 3955 | BJ31: 593 | BK31: 4022 | BL31: 92 | BM31: 16 | BN31: 3552 | BO31: 578
A32: Data | V32: 38427 | W32: DAY April to August 2019 (A) | AB32: WeekDay April to August 2019 (A) | AG32: WeekEnd April to August 2019 (A) | AN32: DAY 2018-19 FY funding rate + MFG (D input) | AS32: WEEKDAY 2018-19 FY funding rate + MFG (D input) | AX32: WEEKEND 2018-19 FY funding rate + MFG (D input) | BF32: Place data (19/20) | BK32: Place data (18/19)
A33: Dfe | B33: School | C33: Type | D33: Nursery | E33: Nursery FTE | G33: Gross Day Floor Area (m2) | H33: Residential Floor Area Weekday (m2) | I33: Residential Floor Area Weekend (m2) | J33: Grounds Site Area (hectares) | K33: Rentals | L33: Rentals | M33: Lump sum standard | N33: lump sum catering day | O33: lump sum residential | P33: lump sum residential rate | Q33: Hydrotherapy Pool | R33: % FSM | S33: London Fringe | T33: Split site- Band 1 | U33: Split site - Band 2 | V33: split site 2 rate | W33: MLD & SLCN | X33: BESD | Y33: SLD | Z33: PD & PMLD | AA33: ASD | AB33: MLD & SLCN | AC33: BESD | AD33: SLD | AE33: PD & PMLD | AF33: ASD | AG33: MLD & SLCN | AH33: BESD | AI33: SLD | AJ33: PD & PMLD | AK33: ASD | AN33: MLD & SLCN | AO33: BESD | AP33: SLD | AQ33: PD & PMLD | AR33: ASD | AS33: MLD & SLCN | AT33: BESD | AU33: SLD | AV33: PD & PMLD | AW33: ASD | AX33: MLD & SLCN | AY33: BESD | AZ33: SLD | BA33: PD & PMLD | BB33: ASD | BF33: Day | BG33: Res Weekday | BH33: Res Weekend | BI33: Pre-16 | BJ33: Post-16 | BK33: Day | BL33: Res Weekday | BM33: Res Weekend | BN33: Pre-16 | BO33: Post-16 | BQ33: Residential weekday | BR33: Residential Weekend | BS33: Residential Weekday Places- Catering | BT33: Residential Weekend Places Catering
A34: 7032 | B34: Bower Grove School | C34: B&L | D34: 0 | E34: 0 | G34: 4093 | H34: 0 | I34: 0 | J34: 2.1496 | K34: 0 | L34: 0 | M34: 1 | N34: 1 | O34: 0 | P34: 0 | Q34: 0 | R34: 0.3888888889 | S34: 0 | T34: 1 | U34: 0 | V34: 0 | W34: 11598.04916 | X34: 13915.65325 | Y34: 15465.88941 | Z34: 21911.62111 | AA34: 17419.87094 | AN34: 11617.02808 | AO34: 13940.12124 | AP34: 15484.86833 | AQ34: 21930.60004 | AR34: 17438.84987 | BF34: 214 | BG34: 0 | BH34: 0 | BI34: 214 | BJ34: 0 | BK34: 212 | BL34: 0 | BM34: 0 | BN34: 212 | BO34: 0 | BQ34: 0 | BR34: 0 | BS34: 0 | BT34: 0
A35: 7033 | B35: St Anthony's School | C35: B&L | D35: 0 | E35: 0 | G35: 3614 | H35: 0 | I35: 0 | J35: 1.54 | K35: 0 | L35: 0 | M35: 1 | N35: 1 | O35: 0 | P35: 0 | Q35: 0 | R35: 0.5092592593 | S35: 0 | T35: 0 | U35: 0 | V35: 0 | W35: 14135.44847 | X35: 16384.36736 | Y35: 18003.28872 | Z35: 24449.02043 | AA35: 19957.27026 | AN35: 14187.50028 | AO35: 16438.88311 | AP35: 18055.34054 | AQ35: 24501.07224 | AR35: 20009.32207 | BF35: 98 | BG35: 0 | BH35: 0 | BI35: 98 | BJ35: 0 | BK35: 98 | BL35: 0 | BM35: 0 | BN35: 98 | BO35: 0 | BQ35: 0 | BR35: 0 | BS35: 0 | BT35: 0
A36: 7044 | B36: Rowhill School | C36: B&L | D36: 0 | E36: 0 | G36: 4165 | H36: 0 | I36: 0 | J36: 1.8948 | K36: 0 | L36: 0 | M36: 1 | N36: 1 | O36: 0 | P36: 0 | Q36: 0 | R36: 0.5740740741 | S36: 1 | T36: 0 | U36: 0 | V36: 0 | W36: 13966.77779 | X36: 16336.02562 | Y36: 17909.7769 | Z36: 24480.6817 | AA36: 19907.47274 | AN36: 13959.45898 | AO36: 16332.51475 | AP36: 17902.45809 | AQ36: 24473.36289 | AR36: 19900.15393 | BF36: 110 | BG36: 0 | BH36: 0 | BI36: 110 | BJ36: 0 | BK36: 110 | BL36: 0 | BM36: 0 | BN36: 110 | BO36: 0 | BQ36: 0 | BR36: 0 | BS36: 0 | BT36: 0
A37: 7045 | B37: Elms School | C37: B&L | D37: 0 | E37: 0 | G37: 2771 | H37: 0 | I37: 0 | J37: 2.13 | K37: 0 | L37: 0 | M37: 1 | N37: 1 | O37: 0 | P37: 0 | Q37: 0 | R37: 0.6384615385 | S37: 0 | T37: 0 | U37: 0 | V37: 0 | W37: 13251.09009 | X37: 15488.77344 | Y37: 17118.93034 | Z37: 23564.66205 | AA37: 19072.91188 | AN37: 13247.63176 | AO37: 15492.65363 | AP37: 17115.47201 | AQ37: 23561.20371 | AR37: 19069.45355 | BF37: 158 | BG37: 0 | BH37: 0 | BI37: 158 | BJ37: 0 | BK37: 115 | BL37: 0 | BM37: 0 | BN37: 115 | BO37: 0 | BQ37: 0 | BR37: 0 | BS37: 0 | BT37: 0
A38: 7062 | B38: The Orchard School | C38: B&L | D38: 0 | E38: 0 | G38: 2505 | H38: 0 | I38: 0 | J38: 1.81 | K38: 0 | L38: 0 | M38: 1 | N38: 1 | O38: 0 | P38: 0 | Q38: 0 | R38: 0.4555555556 | S38: 0 | T38: 0 | U38: 0 | V38: 0 | W38: 14579.37246 | X38: 16790.77913 | Y38: 18447.21271 | Z38: 24892.94442 | AA38: 20401.19425 | AN38: 14670.30917 | AO38: 16858.72375 | AP38: 18538.14942 | AQ38: 24983.88113 | AR38: 20492.13096 | BF38: 83 | BG38: 0 | BH38: 0 | BI38: 83 | BJ38: 0 | BK38: 83 | BL38: 0 | BM38: 0 | BN38: 83 | BO38: 0 | BQ38: 0 | BR38: 0 | BS38: 0 | BT38: 0
A39: 7041 | B39: Goldwyn Community Special School | C39: BESD | D39: 0 | E39: 0 | G39: 5362.38009 | H39: 0 | I39: 0 | J39: 7.3492 | K39: 0 | L39: 0 | M39: 1 | N39: 1 | O39: 0 | P39: 0 | Q39: 0 | R39: 0.3669064748 | S39: 0 | T39: 1 | U39: 1 | V39: 38427 | W39: 13079.93458 | X39: 17924.26407 | Y39: 16947.77484 | Z39: 23393.50654 | AA39: 18901.75637 | AN39: 14320.84596 | AO39: 18760.37764 | AP39: 17842.55411 | AQ39: 23711.47941 | AR39: 19621.68658 | BF39: 150 | BG39: 0 | BH39: 0 | BI39: 150 | BJ39: 0 | BK39: 150 | BL39: 0 | BM39: 0 | BN39: 150 | BO39: 0 | BQ39: 0 | BR39: 0 | BS39: 0 | BT39: 0
A40: 7067 | B40: Portal House School | C40: BESD | D40: 0 | E40: 0 | G40: 3091 | H40: 0 | I40: 0 | J40: 0.81 | K40: 0 | L40: 0 | M40: 1 | N40: 1 | O40: 0 | P40: 0 | Q40: 0 | R40: 0.224137931 | S40: 0 | T40: 0 | U40: 0 | V40: 0 | W40: 16828.5215 | X40: 21672.85099 | Y40: 20696.36176 | Z40: 27142.09346 | AA40: 22650.34329 | AN40: 16842.30472 | AO40: 21686.6342 | AP40: 20710.14497 | AQ40: 27155.87667 | AR40: 22664.1265 | BF40: 80 | BG40: 0 | BH40: 0 | BI40: 80 | BJ40: 0 | BK40: 60 | BL40: 0 | BM40: 0 | BN40: 60 | BO40: 0 | BQ40: 0 | BR40: 0 | BS40: 0 | BT40: 0
A41: 7002 | B41: Broomhill Bank School | C41: C&I | D41: 0 | E41: 0 | G41: 10814.893 | H41: 632.1069985 | I41: 0 | J41: 10.685 | K41: 0 | L41: 0 | M41: 1 | N41: 1 | O41: 1 | P41: 163425 | Q41: 0 | R41: 0.1863636364 | S41: 1 | T41: 0 | U41: 1 | V41: 38427 | W41: 12645.98429 | X41: 14571.90324 | Y41: 16536.73882 | Z41: 23020.63306 | AA41: 19217.94702 | AB41: 51662.82627 | AC41: 53620.81655 | AD41: 55605.82538 | AE41: 62176.73018 | AF41: 58326.59975 | AN41: 14751.09766 | AO41: 15925.94711 | AP41: 18358.79511 | AQ41: 24375.237 | AR41: 20858.58448 | AS41: 54125.92485 | AT41: 56054.54528 | AU41: 58009.77897 | AV41: 64482.1202 | AW41: 60689.74173 | BF41: 212 | BG41: 23 | BH41: 0 | BI41: 173 | BJ41: 62 | BK41: 201 | BL41: 16 | BM41: 0 | BN41: 155 | BO41: 62 | BQ41: 24705.56013 | BR41: 0 | BS41: 1360 | BT41: 0
A42: 7052 | B42: Grange Park School | C42: C&I | D42: 0 | E42: 0 | G42: 1958.53 | H42: 0 | I42: 0 | J42: 1.1245 | K42: 0 | L42: 0 | M42: 1 | N42: 1 | O42: 0 | P42: 0 | Q42: 0 | R42: 0.2909090909 | S42: 0 | T42: 0 | U42: 0 | V42: 0 | W42: 13056.39489 | X42: 14968.24746 | Y42: 16924.23514 | Z42: 23369.96684 | AA42: 19588.08974 | AN42: 13056.91888 | AO42: 14968.77145 | AP42: 16924.75913 | AQ42: 23370.49083 | AR42: 19588.61373 | BF42: 157 | BG42: 0 | BH42: 0 | BI42: 107 | BJ42: 50 | BK42: 110 | BL42: 0 | BM42: 0 | BN42: 64 | BO42: 46 | BQ42: 0 | BR42: 0 | BS42: 0 | BT42: 0
A43: 7058 | B43: Stone Bay School | C43: C&I | D43: 0 | E43: 0 | G43: 2396.216342 | H43: 1481.783658 | I43: 0 | J43: 0.96 | K43: 0 | L43: 0 | M43: 1 | N43: 1 | O43: 1 | P43: 163425 | Q43: 1 | R43: 0.2727272727 | S43: 0 | T43: 0 | U43: 0 | V43: 0 | W43: 16528.66711 | X43: 18440.51968 | Y43: 20396.50736 | Z43: 26842.23906 | AA43: 29449.2196 | AB43: 58872.7652 | AC43: 60784.61777 | AD43: 62740.60545 | AE43: 69186.33715 | AF43: 71793.31769 | AN43: 16526.94287 | AO43: 18438.79544 | AP43: 20394.78312 | AQ43: 26840.51482 | AR43: 29447.49536 | AS43: 59526.26646 | AT43: 61438.11903 | AU43: 63394.10671 | AV43: 69839.83841 | AW43: 72446.81894 | BF43: 42 | BG43: 18 | BH43: 0 | BI43: 45 | BJ43: 15 | BK43: 38 | BL43: 22 | BM43: 0 | BN43: 45 | BO43: 15 | BQ43: 30188.02968 | BR43: 0 | BS43: 1360 | BT43: 0
A44: 7073 | B44: Laleham Gap School | C44: C&I | D44: 0 | E44: 0 | G44: 4451.94 | H44: 433 | I44: 0 | J44: 2.5697 | K44: 0 | L44: 0 | M44: 1 | N44: 1 | O44: 1 | P44: 163425 | Q44: 0 | R44: 0.2361809045 | S44: 0 | T44: 0 | U44: 0 | V44: 0 | W44: 11713.88517 | X44: 13625.73774 | Y44: 15581.72542 | Z44: 22027.45712 | AA44: 18245.58003 | AB44: 69681.12986 | AC44: 71592.98243 | AD44: 73548.97011 | AE44: 79994.70181 | AF44: 76212.82471 | AN44: 11928.72538 | AO44: 13840.57796 | AP44: 15796.56563 | AQ44: 22242.29734 | AR44: 18460.42024 | AS44: 72047.49542 | AT44: 73959.348 | AU44: 75915.33567 | AV44: 82361.06738 | AW44: 78579.19028 | BF44: 192 | BG44: 4 | BH44: 0 | BI44: 196 | BJ44: 0 | BK44: 191 | BL44: 5 | BM44: 0 | BN44: 196 | BO44: 0 | BQ44: 19592.28431 | BR44: 0 | BS44: 1360 | BT44: 0
A45: 7021 | B45: Valence School | C45: PD | D45: 0 | E45: 0 | G45: 8799 | H45: 0 | I45: 1924 | J45: 18.322 | K45: 0 | L45: 0 | M45: 1 | N45: 1 | O45: 1 | P45: 163425 | Q45: 1 | R45: 0.2079207921 | S45: 1 | T45: 0 | U45: 0 | V45: 0 | W45: 15888.87025 | X45: 17846.86053 | Y45: 19831.86936 | Z45: 26402.77416 | AA45: 21829.5652 | AB45: 61883.29027 | AC45: 63841.28056 | AD45: 65826.28939 | AE45: 72397.19419 | AF45: 67823.98523 | AG45: 86932.41353 | AH45: 88890.40381 | AI45: 90875.41264 | AJ45: 97446.31744 | AK45: 92873.10848 | AN45: 16320.43684 | AO45: 17762.76735 | AP45: 19895.7737 | AQ45: 26318.68097 | AR45: 21745.47202 | AS45: 61570.15713 | AT45: 63528.14741 | AU45: 65513.15624 | AV45: 72084.06104 | AW45: 67510.85208 | AX45: 86619.28039 | AY45: 88577.27067 | AZ45: 90562.2795 | BA45: 97133.1843 | BB45: 92559.97534 | BF45: 59 | BG45: 46 | BH45: 16 | BI45: 72 | BJ45: 33 | BK45: 35 | BL45: 49 | BM45: 16 | BN45: 70 | BO45: 30 | BQ45: 37943.25368 | BR45: 23885.65007 | BS45: 1360 | BT45: 2050
A46: 7039 | B46: The Ifield School | C46: PSCN | D46: 1 | E46: 6 | G46: 4274.139996 | H46: 0 | I46: 0 | J46: 6.22 | K46: 31367 | L46: 1 | M46: 1 | N46: 1 | O46: 0 | P46: 0 | Q46: 1 | R46: 0.2832618026 | S46: 0 | T46: 1 | U46: 0 | V46: 0 | W46: 11580.74209 | X46: 13492.59466 | Y46: 15448.58234 | Z46: 21894.31404 | AA46: 18112.43694 | AN46: 11608.70241 | AO46: 13520.55499 | AP46: 15476.54266 | AQ46: 21922.27437 | AR46: 18140.39727 | BF46: 250 | BG46: 0 | BH46: 0 | BI46: 210 | BJ46: 40 | BK46: 230 | BL46: 0 | BM46: 0 | BN46: 187 | BO46: 43 | BQ46: 0 | BR46: 0 | BS46: 0 | BT46: 0
A47: 7040 | B47: Foreland Fields School | C47: PSCN | D47: 2 | E47: 10 | G47: 4331 | H47: 0 | I47: 0 | J47: 4.3045 | K47: 0 | L47: 0 | M47: 1 | N47: 1 | O47: 0 | P47: 0 | Q47: 1 | R47: 0.3240740741 | S47: 0 | T47: 1 | U47: 0 | V47: 0 | W47: 11784.96128 | X47: 13696.81385 | Y47: 15652.80153 | Z47: 22098.53323 | AA47: 18316.65614 | AN47: 11837.13936 | AO47: 13741.425 | AP47: 15697.41267 | AQ47: 22143.14438 | AR47: 18361.26728 | BF47: 220 | BG47: 0 | BH47: 0 | BI47: 188 | BJ47: 32 | BK47: 200 | BL47: 0 | BM47: 0 | BN47: 167 | BO47: 33 | BQ47: 0 | BR47: 0 | BS47: 0 | BT47: 0
A48: 7043 | B48: The Beacon School | C48: PSCN | D48: 2 | E48: 10 | G48: 6634 | H48: 0 | I48: 0 | J48: 0.9251 | K48: 0 | L48: 0 | M48: 1 | N48: 1 | O48: 0 | P48: 0 | Q48: 1 | R48: 0.3571428571 | S48: 0 | T48: 0 | U48: 0 | V48: 0 | W48: 10855.69317 | X48: 12767.54575 | Y48: 14723.53342 | Z48: 21169.26513 | AA48: 17387.38803 | AN48: 11950.61401 | AO48: 13737.66221 | AP48: 15616.00575 | AQ48: 21869.81579 | AR48: 18200.54409 | BF48: 370 | BG48: 0 | BH48: 0 | BI48: 306 | BJ48: 64 | BK48: 354 | BL48: 0 | BM48: 0 | BN48: 291 | BO48: 63 | BQ48: 0 | BR48: 0 | BS48: 0 | BT48: 0
A49: 7051 | B49: Nexus School | C49: PSCN | D49: 1 | E49: 8 | G49: 5820 | H49: 0 | I49: 0 | J49: 2.36 | K49: 0 | L49: 0 | M49: 1 | N49: 1 | O49: 0 | P49: 0 | Q49: 1 | R49: 0.2363636364 | S49: 0 | T49: 0 | U49: 1 | V49: 38427 | W49: 12364.98507 | X49: 14276.83764 | Y49: 16232.82532 | Z49: 22678.55702 | AA49: 18896.67993 | AN49: 12967.59081 | AO49: 14822.51798 | AP49: 16720.26612 | AQ49: 22974.07616 | AR49: 19304.80445 | BF49: 200 | BG49: 0 | BH49: 0 | BI49: 186 | BJ49: 14 | BK49: 172 | BL49: 0 | BM49: 0 | BN49: 158 | BO49: 14 | BQ49: 0 | BR49: 0 | BS49: 0 | BT49: 0
A50: 7056 | B50: Five Acre Wood School | C50: PSCN | D50: 2 | E50: 10 | G50: 7768.4 | H50: 0 | I50: 0 | J50: 2.6382 | K50: 9259 | L50: 1 | M50: 1 | N50: 1 | O50: 0 | P50: 0 | Q50: 1 | R50: 0.2546728972 | S50: 0 | T50: 1 | U50: 1 | V50: 38427 | W50: 10970.39397 | X50: 12882.24654 | Y50: 14838.23422 | Z50: 21283.96592 | AA50: 17502.08882 | AN50: 11425.78058 | AO50: 13045.98979 | AP50: 14951.60216 | AQ50: 21397.33386 | AR50: 17615.45677 | BF50: 470 | BG50: 0 | BH50: 0 | BI50: 412 | BJ50: 58 | BK50: 375 | BL50: 0 | BM50: 0 | BN50: 324 | BO50: 51 | BQ50: 0 | BR50: 0 | BS50: 0 | BT50: 0
A51: 7063 | B51: St Nicholas' School | C51: PSCN | D51: 1 | E51: 6 | G51: 3971.77001 | H51: 0 | I51: 0 | J51: 0.9305 | K51: 77747 | L51: 1 | M51: 1 | N51: 1 | O51: 0 | P51: 0 | Q51: 1 | R51: 0.3181818182 | S51: 0 | T51: 1 | U51: 1 | V51: 38427 | W51: 11676.33856 | X51: 13588.19113 | Y51: 15544.17881 | Z51: 21989.91051 | AA51: 18208.03341 | AN51: 11746.85448 | AO51: 13658.70705 | AP51: 15614.69473 | AQ51: 22060.42643 | AR51: 18278.54933 | BF51: 272 | BG51: 0 | BH51: 0 | BI51: 229 | BJ51: 43 | BK51: 250 | BL51: 0 | BM51: 0 | BN51: 205 | BO51: 45 | BQ51: 0 | BR51: 0 | BS51: 0 | BT51: 0
A52: 7066 | B52: Milestone School | C52: PSCN | D52: 2 | E52: 12 | G52: 7254 | H52: 0 | I52: 0 | J52: 4.6955 | K52: 0 | L52: 0 | M52: 1 | N52: 1 | O52: 0 | P52: 0 | Q52: 1 | R52: 0.234375 | S52: 1 | T52: 0 | U52: 3 | V52: 38427 | W52: 11507.50536 | X52: 13465.49565 | Y52: 15450.50447 | Z52: 22021.40927 | AA52: 18171.27885 | AN52: 11528.61241 | AO52: 13486.60269 | AP52: 15471.61152 | AQ52: 22042.51632 | AR52: 18192.38589 | BF52: 330 | BG52: 0 | BH52: 0 | BI52: 275 | BJ52: 55 | BK52: 330 | BL52: 0 | BM52: 0 | BN52: 275 | BO52: 55 | BQ52: 0 | BR52: 0 | BS52: 0 | BT52: 0
A53: 7069 | B53: The Wyvern School | C53: PSCN | D53: 1 | E53: 5 | G53: 6096 | H53: 0 | I53: 0 | J53: 7.6 | K53: 0 | L53: 0 | M53: 1 | N53: 1 | O53: 0 | P53: 0 | Q53: 1 | R53: 0.2595419847 | S53: 0 | T53: 1 | U53: 0 | V53: 0 | W53: 11462.85328 | X53: 13374.70585 | Y53: 15330.69353 | Z53: 21776.42523 | AA53: 17994.54814 | AN53: 11596.50591 | AO53: 13508.35849 | AP53: 15464.34616 | AQ53: 21910.07787 | AR53: 18128.20077 | BF53: 270 | BG53: 0 | BH53: 0 | BI53: 235 | BJ53: 35 | BK53: 250 | BL53: 0 | BM53: 0 | BN53: 215 | BO53: 35 | BQ53: 0 | BR53: 0 | BS53: 0 | BT53: 0
A54: 7070 | B54: Oakley School | C54: PSCN | D54: 2 | E54: 12 | G54: 4287 | H54: 0 | I54: 0 | J54: 11.4161 | K54: 0 | L54: 0 | M54: 1 | N54: 1 | O54: 0 | P54: 0 | Q54: 0 | R54: 0.2474747475 | S54: 0 | T54: 0 | U54: 1 | V54: 38427 | W54: 12001.20995 | X54: 13913.06253 | Y54: 15869.0502 | Z54: 22314.78191 | AA54: 18532.90481 | AN54: 12014.45054 | AO54: 13926.30311 | AP54: 15882.29079 | AQ54: 22328.02249 | AR54: 18546.14539 | BF54: 200 | BG54: 0 | BH54: 0 | BI54: 158 | BJ54: 42 | BK54: 194 | BL54: 0 | BM54: 0 | BN54: 158 | BO54: 36 | BQ54: 0 | BR54: 0 | BS54: 0 | BT54: 0
A55: 7072 | B55: Meadowfield School | C55: PSCN | D55: 1 | E55: 4 | G55: 6963 | H55: 0 | I55: 0 | J55: 2.3726 | K55: 0 | L55: 0 | M55: 1 | N55: 1 | O55: 0 | P55: 0 | Q55: 1 | R55: 0.2903225806 | S55: 0 | T55: 0 | U55: 0 | V55: 0 | W55: 11424.89785 | X55: 13336.75042 | Y55: 15292.7381 | Z55: 21738.4698 | AA55: 17956.59271 | AN55: 11515.89141 | AO55: 13427.74399 | AP55: 15383.73166 | AQ55: 21829.46337 | AR55: 18047.58627 | BF55: 320 | BG55: 0 | BH55: 0 | BI55: 270 | BJ55: 50 | BK55: 264 | BL55: 0 | BM55: 0 | BN55: 214 | BO55: 50 | BQ55: 0 | BR55: 0 | BS55: 0 | BT55: 0
B56: Total | E56: 83
